Cogmind - Beta 16 --- EXPLORER MODE // 2025.11.21 @ 10:05:49 Player: K.K.Y. Result: Destroyed by as-55489 with Assembled Rifle Performance ------------- Evolutions (0) 0 Regions Visited (2) 400 Robots Destroyed (31) 155 Value Destroyed (556) 556 Prototype IDs (0) 0 Alien Tech Used (0) 0 Bonus (0) 0 TOTAL SCORE: 1111 Bonus ------- None Cogmind --------- Core Integrity 0/250 Matter 262/300 Energy 91/100 System Corruption 0% Temperature Cool (0) Movement Walking (120) Location -10/Mines Parts ------- > --- POWER (1) -------- (None) > --- PROPULSION (2) --- Aluminum Leg > --- UTILITY (3) ------ Terrain Scanner Terrain Scan Processor > --- WEAPON (2) ------- Assault Rifle > --- INVENTORY (5) ---- Small Storage Unit Terrain Scan Processor Peak State ------------ > --- POWER ------------ Ion Engine > --- PROPULSION ------- Flight Unit Flight Unit > --- UTILITY ---------- Structural Scanner Terrain Scanner Seismic Detector > --- WEAPON ----------- Assault Rifle Mining Laser > --- INVENTORY -------- Medium Storage Unit Core Shielding Beam Cannon Assault Rifle [Rating: 8] Favorites ----------- Power Ion Engine Engine Ion Engine Propulsion Wheel Treads Light Treads Leg Aluminum Leg Wheel Wheel Flight Unit Flight Unit Utility Structural Scanner Device Structural Scanner Storage Medium Storage Unit Processor Terrain Scan Processor Weapon Assault Rifle Energy Cannon Beam Cannon Ballistic Gun Assault Rifle Special Weapon Mining Laser Build | -11 -10 -10 ------- Run | Yrd Mat Min Slots Evolved 1 | . 1 . Power . | . . . Propulsion . | . . . Utility 1 | . 1 . Weapon . | . . . Parts Attached 28 | 7 16 5 Power 3 | 1 1 1 Engine 3 | 1 1 1 Core . | . . . Reactor . | . . . Propulsion 10 | 2 7 1 Treads 2 | 2 . . Leg 1 | . . 1 Wheel 5 | . 5 . Hover . | . . . Flight 2 | . 2 . Utility 8 | 2 4 2 Device 6 | 1 4 1 Storage 1 | 1 . . Processor 1 | . . 1 Hackware . | . . . Protection . | . . . Artifact . | . . . Weapon 7 | 2 4 1 Energy Gun . | . . . Energy Cannon 1 | . 1 . Ballistic Gun 2 | 2 . . Ballistic Cannon . | . . . Launcher . | . . . Special Weapon 4 | . 3 1 Impact Weapon . | . . . Slashing Weapon . | . . . Piercing Weapon . | . . . Special Melee Weapon . | . . . Unidentified Prototypes . | . . . Parts Lost 13 | . 3 10 Power 2 | . . 2 Propulsion 2 | . . 2 Utility 4 | . 1 3 Weapon 5 | . 2 3 Highest Loss Streak 4 | . 3 4 To Critical Strikes . | . . . Average Backups 4 | 1 4 4 Power . | . . . Propulsion . | . . . Utility 2 | . 1 3 Weapon 1 | . 1 . Tool/Special . | . . . Unused Backups 3 | . 1 2 Power . | . . . Propulsion . | . . . Utility 3 | . 1 2 Weapon . | . . . Tool/Special . | . . . Average Slot Usage (%) 81 | . 87 69 Engine 9 | . 12 4 Treads 3 | . 5 . Wheel 15 | . 16 12 Flight 1 | . 2 . Device 27 | . 27 28 Storage 1 | . 1 . Energy Cannon 4 | . 2 8 Ballistic Gun 8 | . 11 2 Special Weapon 6 | . 6 6 Peak Build Rating 8 | 7 8 8 Average Rating 6 | 4 7 5 On Entrance 5 | . 7 8 Avg Prop Armor Cover (%) . | . . . Naked Turns . | . . . Heaviest Build 20 | 20 20 10 Greatest Support 40 | 40 40 20 Greatest Overweight (x) 3 | . 3 2 Average Overweight (x) . | . . . Largest Inventory Capacity 10 | 10 10 5 Average Capacity 5 | 8 5 5 Most Carried 5 | 5 5 5 Average Carried 4 | 1 4 4 Final Capacity 10 | 10 5 5 Final Carried 5 | . 5 2 Class Distribution -------------------- 100% | Hacker-Mutant Dominant Class ---------------- Hacker-Mutant | -10/Materials Hacker-Mutant | -10/Mines Resources | -11 -10 -10 ----------- Run | Yrd Mat Min Matter Collected 699 | 269 380 50 Remotely . | . . . Salvage Created 855 | . 656 199 Parts 59 | . 49 10 Haulers Intercepted 2 | . 2 . Recyclers Shooed 1 | . 1 . Parts Field Recycled . | . . . Retrieved Matter . | . . . Parts Self-Destructed . | . . . Prevented . | . . . Parts Restored . | . . . Kills | -11 -10 -10 ------- Run | Yrd Mat Min Combat Hostiles Destroyed 15 | . 10 5 Guns 8 | . 7 1 Cannons 6 | . 3 3 Classes Destroyed 10 | . 9 1 Worker 3 | . 3 . Builder 5 | . 3 2 Tunneler 4 | . 3 1 Hauler 2 | . 2 . Recycler 1 | . 1 . Watcher 2 | . 2 . Swarmer 4 | . 4 . Grunt 9 | . 5 4 Subdweller 1 | . 1 . Assembled 1 | . . 1 Best Kill Streak 5 | . 5 2 Combat Bots Only 3 | . 3 2 Max Kills in Single Turn 1 | . 1 1 Gunslinging . | . . . Exploded . | . . . Melee . | . . . Uniques/NPCs Destroyed . | . . . Combat | -11 -10 -10 -------- Run | Yrd Mat Min Hostile Shots Fired 131 | . 65 66 Missed 36 | . 23 13 Hits 95 | . 42 53 Projectile 95 | . 42 53 AOE 6 | . . 6 Critical Strikes 1 | . . 1 Damage Taken 917 | . 351 566 Core 258 | . 56 202 Absorbed by Shields . | . . . Ignored by Resistances 572 | . 229 343 Core Remaining (%) 100 | 100 . . Volleys Fired 126 | . 94 32 Largest 2 | . 2 2 Hottest 160 | . 120 160 Shots Fired 143 | . 102 41 Gun 83 | . 77 6 Cannon 41 | . 17 24 Launcher . | . . . Special 19 | . 8 11 Kinetic 83 | . 77 6 Thermal 60 | . 25 35 Explosive . | . . . Electromagnetic . | . . . Robot Hit Streak 70 | . 48 70 Robot Miss Streak 2 | . 2 1 Penetration Max . | . . . Secondary Targets . | . . . Shots Hit Robots 122 | . 89 33 Core Hits 45 | . 32 13 Critical Kills . | . . . Critical Parts Destroyed . | . . . Critical Strikes . | . . . Melee Attacks . | . . . Impact . | . . . Slashing . | . . . Piercing . | . . . Sneak Attacks . | . . . Combat Hostiles . | . . . Follow-up Attacks . | . . . Damage Inflicted 1747 | . 1240 507 Guns 886 | . 817 69 Cannons 650 | . 299 351 Explosions . | . . . Melee . | . . . Ramming 4 | . 4 . Kinetic 886 | . 817 69 Thermal 857 | . 419 438 Explosive . | . . . Electromagnetic . | . . . Impact . | . . . Slashing . | . . . Piercing . | . . . Highest Corruption . | . . . Average Corruption . | . . . Corruption Purged . | . . . Corruption Blocked . | . . . Overload Shots . | . . . Overflow Damage . | . . . Projectiles . | . . . Explosions . | . . . Melee . | . . . Knockbacks . | . . . Impact . | . . . Kinetic . | . . . Secondary . | . . . Self-Inflicted Damage 2 | . 2 . Shots . | . . . Rammed 2 | . 2 . Targets Rammed 2 | . 2 . Kicked . | . . . Crushed . | . . . Highest Temperature 271 | . 120 271 Average Temperature 52 | . 29 75 Received Heat Transfer 360 | . 78 282 Siege Activations . | . . . Martial Activations . | . . . Shielding Activations . | . . . Robots Disrupted . | . . . Combat Hostiles . | . . . Robots Corrupted . | . . . Combat Hostiles . | . . . Parts Fried . | . . . Impact Corruptions . | . . . Robots Melted 1 | . . 1 Combat Hostiles 1 | . . 1 Parts Melted 1 | . 1 . Heat Transferred 1869 | . 879 990 Parts Sabotaged . | . . . Parts Stolen . | . . . Parts Stripped . | . . . Power Chain Reactions . | . . . Alert | -11 -10 -10 ------- Run | Yrd Mat Min Maximum Alert Level . | . . . Low Security (%) 100 | 100 100 100 Level 1 . | . . . Level 2 . | . . . Level 3 . | . . . Level 4 . | . . . Level 5 . | . . . High Security . | . . . Max Security . | . . . Peak Influence 75 | . 75 50 Initial . | . . . Average 11 | . 14 6 Influence Increases 422 | . 299 123 Destroy 0b10 Robot/C 260 | . 180 80 Destroy 0b10 Robot/NC 85 | . 70 15 Destroy Leader 68 | . 48 20 Disable Machine 8 | . . 8 Destroy Structure 1 | . 1 . Influence Decreases 422 | . 299 123 Time Decay 417 | . 299 118 Lost Part 5 | . . 5 Squads Dispatched . | . . . Investigation . | . . . Extermination . | . . . Reinforcement . | . . . Assault . | . . . Garrison . | . . . Intercept . | . . . Searches Triggered . | . . . Construction Impeded . | . . . Haulers Reinforced . | . . . Active Scanning Responses . | . . . Cargo Convoy Interrupts . | . . . Stealth | -11 -10 -10 --------- Run | Yrd Mat Min Distress Signals 3 | . 3 . Communications Jammed . | . . . Distress Signals . | . . . Times Spotted 30 | . 16 14 Peak Tracking Total 7 | . 4 7 Tactical Retreats 3 | . . 3 Traps | -11 -10 -10 ------- Run | Yrd Mat Min Traps Triggered 2 | . 2 . Indirectly . | . . . Trap Hack Attempts . | . . . Triggered . | . . . Disarmed . | . . . Reprogrammed . | . . . Reused . | . . . Traps Extracted . | . . . Installed . | . . . Triggered . | . . . Machines | -11 -10 -10 ---------- Run | Yrd Mat Min Machines Disabled 2 | . . 2 Max in Single Turn 1 | . . 1 Machines Repaired . | . . . Machines Dismantled . | . . . Machines Sabotaged . | . . . Overloaded Fab Kills . | . . . Hacking | -11 -10 -10 --------- Run | Yrd Mat Min Machines Accessed . | . . . Terminals . | . . . Fabricators . | . . . Repair Stations . | . . . Recycling Units . | . . . Scanalyzers . | . . . Garrison Access . | . . . Total Hacks . | . . . Successful . | . . . Failed . | . . . Catastrophic . | . . . Database Lockouts . | . . . Manual . | . . . Terminals . | . . . Fabricators . | . . . Repair Stations . | . . . Recycling Units . | . . . Scanalyzers . | . . . Garrison Access . | . . . Terminal Hacks . | . . . Fabricator Hacks . | . . . Repair Station Hacks . | . . . Recycling Unit Hacks . | . . . Scanalyzer . | . . . Garrison Access Hacks . | . . . Unauthorized Hacks . | . . . Terminals . | . . . Fabricators . | . . . Repair Stations . | . . . Recycling Units . | . . . Scanalyzers . | . . . Garrison Access . | . . . Data Cores Recovered . | . . . Used . | . . . Hacking Detections . | . . . Full Trace Events . | . . . Feedback Events . | . . . Feedback Blocked . | . . . Robot Schematics Acquired . | . . . Robots Built . | . . . Authchips . | . . . Time . | . . . Total Robot Build Rating . | . . . Part Schematics Acquired . | . . . Parts Built . | . . . Authchips . | . . . Time . | . . . Total Part Build Rating . | . . . Part Studies Acquired . | . . . Parts Repaired . | . . . Time . | . . . Parts Recycled . | . . . Recycled Matter . | . . . Retrieved Matter . | . . . Retrieved Components . | . . . Parts Scanalyzed . | . . . Part Schematics Acquired . | . . . Parts Damaged . | . . . Bothacking | -11 -10 -10 ------------ Run | Yrd Mat Min Used RIF Installer . | . . . Robots Hacked . | . . . Non-combat . | . . . Combat . | . . . Robot Hacks Applied . | . . . Relay Couplers Released . | . . . Fabnet Peak Effective % . | . . . Robots Rewired . | . . . Allies Hacked . | . . . Hacks Repelled . | . . . Allies | -11 -10 -10 -------- Run | Yrd Mat Min Total Allies . | . . . Largest Group . | . . . Highest-Rated Group . | . . . Highest-Rated Ally . | . . . Total Orders . | . . . Ally Attacks . | . . . Total Damage . | . . . Kills . | . . . Allies Corrupted . | . . . Allies Melted . | . . . Intel | -11 -10 -10 ------- Run | Yrd Mat Min Active Infowar (turns) 1493 | 43 1012 438 Terrain 952 | . 578 374 Structural 1245 | 43 1012 190 Seismic 1109 | . 683 426 Robot Analysis Total . | . . . Derelict Logs Recovered . | . . . Drone Launches . | . . . Drone Recoveries . | . . . Exploration | -11 -10 -10 ------------- Run | Yrd Mat Min Turns Passed 1520 | 70 1012 438 Spaces Moved 1164 | 48 787 329 Core 82 | 17 3 62 Treads 157 | 31 126 . Legs 76 | . . 76 Wheels 721 | . 530 191 Hover . | . . . Flight 128 | . 128 . Fastest Speed 37 | 50 37 50 Average Speed 87 | 121 86 84 Slowest Speed 200 | 160 200 150 Overloaded Moves . | . . . Propulsion Burnouts . | . . . Robots Hopped 2 | . 2 . Potential Cave-ins . | . . . Cave-ins Triggered . | . . . Exploration Rate (%) 44 | 3 81 48 Regions Visited 2 Branch Regions 1 Pre-discovered Areas . | . . . Known Exits Taken 2 | 1 1 . Unknown Exits Taken . | . . . Scrap Searched . | . . . Spaces Dug . | . . . Terrain Destroyed 1 | . 1 . Melee . | . . . Projectile 1 | . 1 . AOE . | . . . Terrain Rammed . | . . . Walls Destroyed . | . . . Machines Disabled . | . . . Actions | -11 -10 -10 --------- Run | Yrd Mat Min Total 1495 | 59 1002 434 Wait 140 | . 76 64 Move 1159 | 47 783 329 Hop 1 | . 1 . Pick Up 17 | 5 10 2 Fast Attach 10 | 2 6 2 Attach 15 | 5 6 4 Detach 6 | . 6 . Swap 7 | . 7 . Drop 12 | . 11 1 Fire 126 | . 94 32 Melee . | . . . Ram 2 | . 2 . Kick . | . . . Crush . | . . . Escape Stasis . | . . . Rewire . | . . . Trap . | . . . Miscellaneous . | . . . Route ------- -11/Scrapyard -10/Materials (discovered 4 exits: *Mat x2 / *Min x2) -10/Mines (discovered 2 exits: *Mat x2) History --------- Turn | Location | Event 14 | -11/Scrapyard | Identified exit to Materials 14 | -11/Scrapyard | Discovered exit to Materials (range 15) 71 | -11/Scrapyard | Entered Materials 71 | -10/Materials | Evolved 1 slot: Utility x1 71 | -10/Materials | Identified exit to Mines 71 | -10/Materials | Discovered exit to Mines (range 15) 311 | -10/Materials | Build established: Hacker-Mutant 325 | -10/Materials | Discovered exit to Mines (range 15) 609 | -10/Materials | Identified exit to Materials 609 | -10/Materials | Discovered exit to Materials (range 8) 671 | -10/Materials | Derelicts attacked the area 832 | -10/Materials | Discovered exit to Materials (range 15) 926 | -10/Materials | Lost 3 parts (1u2w) 1083 | -10/Materials | Entered Mines 1168 | -10/Mines | Discovered exit to Materials (range 7) 1198 | -10/Mines | Core integrity fell below 50% 1349 | -10/Mines | Assembled infested the area 1354 | -10/Mines | Assisted by a Guerilla fighting off Assembled 1374 | -10/Mines | Core integrity fell below 20% 1402 | -10/Mines | Lost 4 parts (1p1n1u1w) 1466 | -10/Mines | Discovered exit to Materials (range 14) 1521 | -10/Mines | Destroyed by as-55489 with Assembled Rifle Last Messages --------------- 01377_ as-33204 suffers critical hit (Destroy). 01377_ as-33204 destroyed. 01377_ as-50163 suffers critical hit (Destroy). 01377_ as-50163 destroyed. 01379_ QS-KXI(h) system corrupted by crushing effect. 01379_ QS-KXI(h) knocked back. 01380_ Acquired 10 matter. 01383_ HV Slug penetrates as-37241. 01383_ as-37241 knocked back. 01383_ QS-KXI(h) system corrupted by crushing effect. 01384_ QS-KXI(h) system terminally corrupted. 01407_ Acquired Assault Rifle. 01411_ Acquired Aluminum Leg. 01413_ Acquired 10 matter. 01466_ EXIT=FOUND: MATERIALS 01509_ Seismic Detector destroyed. 01514_ Welding Torch destroyed. 01516_ as-53873 destroyed. Map ----- +----------------------------------------------------+ | ?## """ ##??????#????????????????? | | ?## ##???????????????????????? | | ?## ##??????#????????????????? | | ?####### ######??#?#??#???????????????? | | ?####### ######?????????#?????????????? | | ???#?### ##?#???????#?????????????????? | | ???##?## ########????????#?? "????????? | | ???##### #########????#???????????????? | | ##??#### ###??????#?#??? ???????? | | ############## ##?????????????????????? | | ############## ########???#???????????? | | ######## #########??#???????????? | | ##????##?????????? | | ############# ###??????????????? | | ## ############# ##?##???????#????? | | ### ##???##?#??# ######?##????????? | | ### ##???#?????# #### ? ??#??????? | | ?### ###???##????# #?## ##?#??????#?? | | ###########???#??#?# #### ##??#???????? | | #?#########??#???#?# #?## #?#?#???????? | | ???#????????#?#?#??# #?# ####????????# | | ?#?#????????#?###### ### ###????##? | | ?#?#?#????##?## ## #?#?#????? | | ##?#????#??### #### ### #??###???? | | ????#??????#????????# #?#?#???#? | | ?#???????????